fUSD/lending_fUSD_20251113
["ID","MTS","AMOUNT","RATE_DAILY","PERIOD"]
[393855664,1763043044683,-300.0,0.00040776,2]
[393855665,1763043044693,-10952.9853551,0.0004078,4]
[393855666,1763043044702,-300.0,0.0004079,2]
[393855667,1763043044711,-25806.5184068,0.0004079,4]
[393855668,1763043044721,-21905.9707102,0.0004079,4]
[393855669,1763043044730,-300.0,0.00040796,2]
[393855670,1763043044739,-300.0,0.00040797,2]
[393855671,1763043044749,-5000.0,0.000408,120]
[393855672,1763043044758,-790.0,0.000408,14]
[393855673,1763043044767,-10952.9853551,0.000408,4]
[393855674,1763043044776,-21905.9707102,0.00040808,4]
[393855675,1763043044786,-25806.5184068,0.0004081,4]
[393855676,1763043044795,-10952.9853551,0.00040811,4]
[393855677,1763043044805,-300.0,0.00040816,2]
[393855678,1763043044822,-51613.0368137,0.00040818,4]
[393855679,1763043044831,-43811.9414203,0.00040818,4]
[393855680,1763043044841,-300.0,0.00040818,2]
[393855681,1763043044851,-681.34346425,0.00040818,7]
[393855682,1763043044861,-681.34346425,0.00040818,7]
[393855683,1763043044871,-681.34346425,0.00040818,7]
[393855684,1763043044880,-150.0,0.00040821,2]
[393855685,1763043044890,-2028.4372,0.00040821,30]
[393855686,1763043044899,-775.87,0.00040821,4]
[393855687,1763043044909,-500.0,0.00040822,30]
[393855688,1763043044920,-154.45764356,0.00040822,7]
[393855689,1763043044929,-500.0,0.00040827,2]
[393855690,1763043044939,-500.0,0.00040827,2]
[393855691,1763043044948,-500.0,0.00040827,2]
[393855692,1763043044958,-500.0,0.00040827,2]
[393855693,1763043044967,-500.0,0.00040827,2]
[393855694,1763043044977,-500.0,0.00040827,2]
[393855695,1763043044986,-500.0,0.00040827,2]
[393855696,1763043044995,-500.0,0.00040827,2]
[393855697,1763043045004,-500.0,0.00040827,2]
[393855698,1763043045014,-500.0,0.00040827,2]
[393855699,1763043045023,-500.0,0.00040827,2]
[393855700,1763043045032,-500.0,0.00040827,2]
[393855701,1763043045041,-500.0,0.00040827,2]
[393855702,1763043045050,-500.0,0.00040827,2]
[393855703,1763043045059,-500.0,0.00040827,2]
[393855704,1763043045069,-500.0,0.00040827,2]
[393855705,1763043045078,-500.0,0.00040827,2]
[393855706,1763043045087,-500.0,0.00040827,2]
[393855707,1763043045096,-500.0,0.00040827,2]
[393855708,1763043045106,-587.69802353,0.00040827,2]
[393855709,1763043045116,-1000.0,0.00040828,30]
[393855710,1763043045125,-1007.12936943,0.00040828,30]
[393855711,1763043045134,-151.0,0.00040828,120]
[393855712,1763043045143,-151.0,0.00040828,120]
[393855713,1763043045153,-151.0,0.00040828,120]
[393855714,1763043045162,-151.0,0.00040828,120]
[393855715,1763043045170,-151.0,0.00040828,30]
[393855716,1763043045180,-151.0,0.00040828,120]
[393855717,1763043045191,-151.000003,0.00040828,120]
[393855718,1763043045201,-167.587005,0.00040828,120]
[393855719,1763043045211,-151.0,0.00040828,120]
[393855720,1763043045220,-151.0,0.00040828,120]
[393855721,1763043045229,-154.266342,0.00040828,120]
[393855722,1763043045352,-151.0,0.00040828,120]
[393855723,1763043045377,-153.103457,0.00040828,120]
[393855724,1763043045387,-151.0,0.00040828,120]
[393855725,1763043045396,-151.0,0.00040828,120]
[393855726,1763043045405,-151.0,0.00040828,120]
[393855727,1763043045417,-170.634603,0.00040828,120]
[393855728,1763043045426,-155.775543,0.00040828,120]
[393855729,1763043045435,-151.0,0.00040828,120]
[393855730,1763043045444,-151.0,0.00040828,120]
[393855731,1763043045454,-151.0,0.00040828,120]
[393855732,1763043045464,-151.0,0.00040828,120]
[393855733,1763043045473,-151.0,0.00040828,120]
[393855734,1763043045482,-151.0,0.00040828,120]
[393855735,1763043045495,-151.0,0.00040828,120]
[393855736,1763043045505,-151.0,0.00040828,120]
[393855737,1763043045514,-151.0,0.00040828,120]
[393855738,1763043045524,-151.0,0.00040828,120]
[393855739,1763043045534,-151.0,0.00040828,120]
[393855740,1763043045544,-151.0,0.00040828,120]
[393855741,1763043045553,-151.0,0.00040828,120]
[393855742,1763043045563,-151.0,0.00040828,120]
[393855743,1763043045574,-151.0,0.00040828,120]
[393855744,1763043045585,-256.770024,0.00040828,120]
[393855745,1763043045594,-151.0,0.00040828,120]
[393855746,1763043045604,-151.0,0.00040828,120]
[393855747,1763043045614,-151.0,0.00040828,120]
[393855748,1763043045625,-151.0,0.00040828,120]
[393855749,1763043045635,-151.0,0.00040828,120]
[393855750,1763043045645,-151.0,0.00040828,120]
[393855751,1763043045655,-151.0,0.00040828,120]
[393855752,1763043045666,-151.0,0.00040828,120]
[393855753,1763043045675,-151.0,0.00040828,120]
[393855754,1763043045685,-151.0,0.00040828,120]
[393855755,1763043045695,-151.0,0.00040828,120]
[393855756,1763043045705,-151.0,0.00040828,120]
[393855757,1763043045714,-151.0,0.00040828,14]
[393855758,1763043045724,-156.042706,0.00040828,14]
[393855759,1763043045733,-152.145579,0.00040828,120]
[393855760,1763043045743,-151.0,0.00040828,60]
[393855761,1763043045753,-151.0,0.00040828,120]
[393855762,1763043045762,-151.0,0.00040828,120]
[393855763,1763043045772,-151.0,0.00040828,30]
[393855764,1763043045781,-396.298166,0.00040828,120]
[393855765,1763043045791,-396.298166,0.00040828,120]
[393855766,1763043045800,-396.298166,0.00040828,120]
[393855767,1763043045810,-396.298166,0.00040828,120]
[393855768,1763043045819,-396.298166,0.00040828,120]
[393855769,1763043045828,-396.298166,0.00040828,120]
[393855770,1763043045838,-396.298166,0.00040828,120]
[393855771,1763043045849,-396.298166,0.00040828,120]
[393855772,1763043045859,-396.298166,0.00040828,120]
[393855773,1763043045868,-396.298166,0.00040828,120]
[393855774,1763043045877,-396.298166,0.00040828,120]
[393855775,1763043045887,-396.298166,0.00040828,120]
[393855776,1763043045896,-151.0,0.00040828,120]
[393855777,1763043045907,-396.298166,0.00040828,120]
[393855778,1763043045918,-396.298166,0.00040828,120]
[393855779,1763043045928,-396.298166,0.00040828,120]
[393855780,1763043045938,-396.298166,0.00040828,120]
[393855781,1763043045950,-396.298166,0.00040828,120]
[393855782,1763043045960,-396.298166,0.00040828,120]
[393855783,1763043045969,-396.298166,0.00040828,120]
[393855784,1763043045979,-396.298158,0.00040828,120]
[393855785,1763043045989,-151.0,0.00040828,120]
[393855786,1763043045999,-151.0,0.00040828,120]
[393855787,1763043046009,-151.0,0.00040828,120]
[393855788,1763043046019,-151.0,0.00040828,120]
[393855789,1763043046029,-151.0,0.00040828,120]
[393855790,1763043046040,-151.000005,0.00040828,120]
[393855791,1763043046050,-151.0,0.00040828,120]
[393855792,1763043046059,-155.934058,0.00040828,120]
[393855793,1763043046069,-151.0,0.00040828,120]
[393855794,1763043046078,-151.0,0.00040828,120]
[393855795,1763043046087,-273.330726,0.00040828,120]
[393855796,1763043046097,-197.172914,0.00040828,120]
[393855797,1763043046107,-197.172914,0.00040828,120]
[393855798,1763043046115,-197.172914,0.00040828,120]
[393855799,1763043046124,-197.172914,0.00040828,120]
[393855800,1763043046134,-197.172914,0.00040828,120]
[393855801,1763043046143,-197.172914,0.00040828,120]
[393855802,1763043046153,-197.172914,0.00040828,120]
[393855803,1763043046163,-197.172914,0.00040828,120]
[393855804,1763043046173,-197.172914,0.00040828,120]
[393855805,1763043046182,-197.172914,0.00040828,120]
[393855806,1763043046191,-151.0,0.00040828,120]
[393855807,1763043046200,-197.172914,0.00040828,120]
[393855808,1763043046210,-151.0,0.00040828,120]
[393855809,1763043046219,-197.172914,0.00040828,120]
[393855810,1763043046228,-151.0,0.00040828,120]
[393855811,1763043046237,-151.0,0.00040828,120]
[393855812,1763043046247,-197.172914,0.00040828,120]
[393855813,1763043046256,-282.70469,0.00040828,120]
[393855814,1763043046266,-197.172914,0.00040828,120]
[393855815,1763043046275,-197.172914,0.00040828,120]
[393855816,1763043046284,-197.172914,0.00040828,120]
[393855817,1763043046294,-197.172914,0.00040828,120]
[393855818,1763043046303,-197.172914,0.00040828,120]
[393855819,1763043046313,-197.172914,0.00040828,120]
[393855820,1763043046322,-197.172914,0.00040828,120]
[393855821,1763043046331,-299.75994,0.00040828,120]
[393855822,1763043046341,-299.75994,0.00040828,120]
[393855823,1763043046350,-299.75994,0.00040828,120]
[393855824,1763043046359,-299.75994,0.00040828,120]
[393855825,1763043046368,-299.75994,0.00040828,120]
[393855826,1763043046378,-299.75994,0.00040828,120]
[393855827,1763043046388,-299.75994,0.00040828,120]
[393855828,1763043046398,-299.75994,0.00040828,120]
[393855829,1763043046408,-299.75994,0.00040828,120]
[393855830,1763043046418,-299.75994,0.00040828,120]
[393855831,1763043046427,-299.75994,0.00040828,120]
[393855832,1763043046437,-299.75994,0.00040828,120]
[393855833,1763043046447,-299.75994,0.00040828,120]
[393855834,1763043046456,-299.75994,0.00040828,120]
[393855835,1763043046466,-299.75994,0.00040828,120]
[393855836,1763043046476,-299.75994,0.00040828,120]
[393855837,1763043046487,-299.75994,0.00040828,120]
[393855838,1763043046498,-299.75994,0.00040828,120]
[393855839,1763043046507,-299.75994,0.00040828,120]
[393855840,1763043046516,-299.75994,0.00040828,120]
[393855841,1763043046527,-151.0,0.00040828,30]
[393855842,1763043046536,-151.0,0.00040828,30]
[393855843,1763043046546,-151.0,0.00040828,30]
[393855844,1763043046555,-183.372396,0.00040828,120]
[393855845,1763043046565,-151.0,0.00040828,120]
[393855846,1763043046577,-157.135353,0.00040828,120]
[393855847,1763043046587,-151.0,0.00040828,120]
[393855848,1763043046596,-151.0,0.00040828,120]
[393855849,1763043046607,-151.0,0.00040828,120]
[393855850,1763043046616,-382.907735,0.00040828,30]
[393855851,1763043046626,-382.907735,0.00040828,30]
[393855852,1763043046635,-382.907735,0.00040828,30]
[393855853,1763043046644,-382.907735,0.00040828,30]
[393855854,1763043046653,-382.907735,0.00040828,30]
[393855855,1763043046663,-382.907735,0.00040828,30]
[393855856,1763043046672,-382.907735,0.00040828,30]
[393855857,1763043046681,-382.907735,0.00040828,30]
[393855858,1763043046691,-382.907735,0.00040828,30]
[393855859,1763043046700,-382.907735,0.00040828,30]
[393855860,1763043046710,-382.907739,0.00040828,30]
[393855861,1763043046720,-151.0,0.00040828,120]
[393855862,1763043046730,-151.0,0.00040828,120]
[393855863,1763043046740,-151.0,0.00040828,120]
[393855864,1763043046749,-151.0,0.00040828,120]
[393855865,1763043046758,-151.0,0.00040828,120]
[393855866,1763043046767,-280.928827,0.00040828,120]
[393855867,1763043046777,-267.86529,0.00040828,120]
[393855868,1763043046786,-3271.273078,0.00040828,28]
[393855869,1763043046795,-3271.273078,0.00040828,28]
[393855870,1763043046804,-3271.273078,0.00040828,28]
[393855871,1763043046814,-1200.0,0.00040828,30]
[393855872,1763043046823,-3271.273078,0.00040828,28]
[393855873,1763043046832,-3271.273078,0.00040828,28]
[393855874,1763043046841,-3271.273078,0.00040828,28]
[393855875,1763043046851,-3271.273078,0.00040828,28]
[393855876,1763043046860,-3271.273078,0.00040828,28]
[393855877,1763043046869,-3271.273078,0.00040828,28]
[393855878,1763043046879,-3271.273078,0.00040828,28]
[393855879,1763043046888,-3271.273078,0.00040828,28]
[393855880,1763043046897,-3271.273078,0.00040828,28]
[393855881,1763043046907,-3271.273078,0.00040828,28]
[393855882,1763043046917,-3271.273078,0.00040828,28]
[393855883,1763043046926,-3271.273078,0.00040828,28]
[393855884,1763043046936,-3271.273078,0.00040828,28]
[393855885,1763043046946,-3271.273078,0.00040828,28]
[393855886,1763043046955,-3271.273078,0.00040828,28]
[393855887,1763043046965,-3271.273078,0.00040828,28]
[393855888,1763043046974,-3271.273078,0.00040828,28]
[393855889,1763043046984,-158.93583,0.00040828,120]
[393855890,1763043046994,-10227167.71638268,0.00040828,7]
[393855891,1763043047187,-1154.23584002,0.00040828,7]
[393855892,1763043047207,-7488.39143458,0.00040828,7]
[393855893,1763043047219,-127748.87398564,0.00040828,7]
[393855894,1763043047395,-2223.466,0.00032092,2]
[393855895,1763043047405,-151.0,0.00032667,2]
[393855896,1763043047415,-6792.03727775,0.00040828,7]
[393855897,1763043047595,-36.91752199,0.000407,34]
[393855898,1763043047609,-553.50213401,0.000407,34]
[393855899,1763043047623,-22.97786599,0.00040828,7]
[393855900,1763043047636,-345.20725634,0.00040828,7]
[393855901,1763043047999,-151.0,0.0004,2]
[393855902,1763043048008,-172.308481,0.00040828,30]
[393855903,1763043048018,-56.07990683,0.00040828,30]
[393855904,1763043048029,-116.22857417,0.00040828,30]
[393855905,1763043048040,-172.308481,0.00040828,30]
[393855906,1763043048050,-123.47497923,0.00040828,30]
[393855907,1763043048069,-48.83350177,0.00040828,30]
[393855908,1763043048079,-172.308481,0.00040828,30]
[393855909,1763043048088,-172.308481,0.00040828,30]
[393855910,1763043048098,-95.21395048,0.00040828,7]
[393855911,1763043049151,1000.0,0.00015911,2]
[393855918,1763043245450,5219.57,0.00030137,120]
[393855921,1763043625857,250.0,0.00017,2]
[393855922,1763043626505,300.0,0.00019,2]
[393855958,1763043908529,9450.01,0.00018,2]
[393855959,1763043908554,10000.01,0.00018,2]
[393855960,1763043908580,10000.01,0.00018,2]
[393855961,1763043908606,10000.01,0.00018,2]
[393855962,1763043908633,10000.01,0.00018,2]
[393855963,1763043908658,10000.01,0.00018,2]
[393855964,1763043908682,10000.01,0.00018,2]
[393855965,1763043908708,150.0,0.00018,2]
[393855966,1763043908738,25000.0,0.00018,2]
[393855967,1763043908876,783.78211809,0.00040837,90]
[393855968,1763043909399,-223.66125096,0.00018,2]
[393855969,1763043910404,195.0,0.000198,120]
[393855970,1763043910515,195.0,0.00023,120]
[393855971,1763043910627,195.0,0.00027842,120]
[393855972,1763043911510,193.0,0.000198,120]
[393855973,1763043912864,-394.40706214,0.00018,2]
[393855974,1763043918081,-245.16913965,0.00018,2]
[393855975,1763043926160,-278.68528979,0.00018,2]
[393855976,1763043929364,-370.48060137,0.00018,2]
[393855977,1763043931312,-295.69842264,0.00018,2]
[393855978,1763043935536,-190.55128239,0.00018,2]
[393855979,1763043937283,-151.0,0.00018,2]
[393855980,1763043941955,-327.07875279,0.00018,2]
[393855981,1763043944617,-194.44334265,0.00018,2]
[393855982,1763043950543,-287.35974557,0.00018,2]
[393855983,1763043954063,-336.03800854,0.00018,2]
[393855984,1763043985839,151.210618,0.00040857,120]
[393855985,1763043986129,151.210618,0.00040857,120]
[393855986,1763043986545,151.210618,0.00040857,120]
[393855987,1763044011587,2894.2028834,0.00015,14]
[393855988,1763044012540,10000.00378862,0.000162,5]
[393855989,1763044032509,150.913106,0.00040857,120]
[393855990,1763044032658,300.0,0.000172,6]
[393855991,1763044032955,150.913106,0.00040857,120]
[393855992,1763044034763,700.0,0.000173,6]
[393855993,1763044035660,-300.0,0.00017998,2]
[393855994,1763044035688,-300.0,0.00017999,2]
[393855995,1763044035716,-300.0,0.00017999,2]
[393855996,1763044036856,1000.0,0.000174,6]
[393855997,1763044038945,1400.0,0.000175,6]
[393855998,1763044040213,170.358916,0.00040857,120]
[393855999,1763044041049,1700.0,0.000176,6]
[393856000,1763044043137,300.0,0.000177,6]
[393856001,1763044045236,300.0,0.000178,6]
[393856002,1763044047337,300.0,0.000179,6]
[393856003,1763044047739,356.8831616,0.000166,2]
[393856004,1763044088561,-300.0,0.00016999,2]
[393856005,1763044091735,-9412.9071479,0.00017,2]
[393856006,1763044091869,-10000.01,0.00017,2]
[393856007,1763044091986,-10000.01,0.00017,2]
[393856008,1763044092127,-10000.01,0.00017,2]
[393856009,1763044092256,-10000.01,0.00017,2]
[393856010,1763044094873,-10000.01,0.00017,2]
[393856011,1763044098332,-10000.01,0.00017,2]
[393856012,1763044098567,-10000.01,0.00017,2]
[393856013,1763044101974,567547.27036784,0.00040857,30]
[393856016,1763044104508,-10000.01,0.00017,2]
[393856017,1763044105882,729.61996631,0.00040857,120]
[393856018,1763044107530,-10000.01,0.00017,2]
[393856019,1763044107659,-10000.01,0.00017,2]
[393856020,1763044110818,-10000.01,0.00017,2]
[393856021,1763044113943,-500.35201657,0.00016999,2]
[393856022,1763044113973,-332.84386112,0.00016999,2]
[393856023,1763044114011,-500.0,0.00016999,2]
[393856024,1763044114043,-500.0,0.00016999,2]
[393856025,1763044114081,-500.0,0.00016999,2]
[393856026,1763044114114,-417.78849547,0.00016999,2]
[393856027,1763044114146,-500.0,0.00016999,2]
[393856028,1763044114180,-500.0,0.00016999,2]
[393856029,1763044114211,-500.0,0.00016999,2]
[393856030,1763044114246,-500.0,0.00016999,2]
[393856031,1763044114376,-319.57235353,0.00016999,2]
[393856032,1763044114522,-180.42764647,0.00016999,2]
[393856033,1763044114540,-317.61360721,0.00016999,2]
[393856034,1763044114592,-182.38639279,0.00016999,2]
[393856035,1763044114627,-500.0,0.00016999,2]
[393856036,1763044114662,-500.0,0.00016999,2]
[393856037,1763044114697,-500.0,0.00016999,2]
[393856038,1763044114733,-500.0,0.00016999,2]
[393856039,1763044114767,-500.0,0.00016999,2]
[393856040,1763044114802,-500.0,0.00016999,2]
[393856041,1763044114849,-500.0,0.00016999,2]
[393856042,1763044114887,-500.0,0.00016999,2]
[393856043,1763044114921,-500.0,0.00016999,2]
[393856044,1763044114957,-135.23721442,0.00016999,2]
[393856045,1763044115203,-364.76278558,0.00016999,2]
[393856046,1763044117713,21884.22757521,0.00015,3]
[393856047,1763044117742,100000.0,0.00015,3]
[393856048,1763044117770,100000.0,0.00015,3]
[393856049,1763044117798,100000.0,0.00015,3]
[393856050,1763044117826,100000.0,0.00015,3]
[393856051,1763044117858,100000.0,0.00015,3]
[393856052,1763044117886,100000.0,0.00015,3]
[393856053,1763044117917,100000.0,0.00015,3]
[393856054,1763044117947,100000.0,0.00015,3]
[393856055,1763044117976,100000.0,0.00015,3]
[393856056,1763044118011,14273.31287672,0.00015,3]
[393856057,1763044120176,-500.0,0.00016999,2]
[393856058,1763044120212,-500.0,0.00016999,2]
[393856059,1763044120249,-500.0,0.00016999,2]
[393856060,1763044120286,-500.0,0.00016999,2]
[393856061,1763044120321,-500.0,0.00016999,2]
[393856062,1763044120356,-500.0,0.00016999,2]
[393856063,1763044120390,-500.0,0.00016999,2]
[393856064,1763044120425,-500.0,0.00016999,2]
[393856065,1763044120462,-500.0,0.00016999,2]
[393856066,1763044120497,-500.0,0.00016999,2]
[393856067,1763044120609,-500.0,0.00016999,2]
[393856068,1763044120643,-384.40450672,0.00016999,2]
[393856069,1763044120675,-500.0,0.00016999,2]
[393856070,1763044120707,-500.0,0.00016999,2]
[393856071,1763044120950,-0.01,0.00017,2]
[393856072,1763044120964,-6231.20098656,0.00017,2]
[393856073,1763044126361,-10000.01,0.00017,2]
[393856074,1763044126458,-10000.01,0.00017,2]
[393856075,1763044126597,-10000.01,0.00017,2]
[393856076,1763044144077,-166.65999983,0.00016999,2]
[393856077,1763044145774,-333.34000017,0.00016999,2]
[393856078,1763044145801,-50.22147425,0.00016999,2]
[393856079,1763044151345,-449.77852575,0.00016999,2]
[393856080,1763044151372,-500.0,0.00016999,2]
[393856081,1763044151399,-145.95949967,0.00016999,2]
[393856082,1763044154877,503.59272086,0.00016973,2]
[393856083,1763044159086,-354.04050033,0.00016999,2]
[393856084,1763044159114,-500.0,0.00016999,2]
[393856085,1763044159144,-500.0,0.00016999,2]
[393856086,1763044159171,-150.0,0.00016999,2]
[393856087,1763044159198,-500.0,0.00016999,2]
[393856088,1763044159224,-180.68372135,0.00016999,2]
[393856089,1763044161009,-289.89031148,0.00016999,2]
[393856090,1763044165876,-29.42596717,0.00016999,2]
[393856091,1763044165903,-132.06403283,0.00016999,2]
[393856092,1763044168422,-273.76431158,0.00016999,2]
[393856093,1763044171967,160.69480638,0.000169,2]
[393856094,1763044173688,-94.17165559,0.00016999,2]
[393856095,1763044173721,-94.87157989,0.00016999,2]
[393856096,1763044176549,-244.36544463,0.00016999,2]
[393856097,1763044179035,-160.76297548,0.00016999,2]
[393856098,1763044179062,-141.87483741,0.00016999,2]
[393856099,1763044182156,-340.67876418,0.00016999,2]
[393856100,1763044183738,-17.44639841,0.00016999,2]
[393856101,1763044183762,-254.19922662,0.00016999,2]
[393856102,1763044191424,-245.80077338,0.00016999,2]
[393856103,1763044191457,-18.42591253,0.00016999,2]
[393856104,1763044197597,-236.3723841,0.00016999,2]
[393856105,1763044200620,-190.4422575,0.00016999,2]
[393856106,1763044202315,550.0,0.00016999,2]
[393856107,1763044202351,300.0,0.00016999,2]
[393856108,1763044202384,1085.0,0.00016999,2]
[393856109,1763044208677,170.74,0.0001699,2]
[393856110,1763044208935,170.74,0.0001699,2]
[393856111,1763044209169,170.74,0.0001699,2]
[393856112,1763044209397,170.74,0.0001699,2]
[393856113,1763044209923,502.84178259,0.00016973,2]
[393856114,1763044210827,6214.92069017,0.0001699,2]
[393856115,1763044210851,9756.55930983,0.0001699,2]
[393856116,1763044211042,243.45069017,0.0001699,2]
[393856117,1763044211070,10000.01,0.0001699,2]
[393856118,1763044211096,5728.01930983,0.0001699,2]
[393856119,1763044217337,163.41,0.0001699,2]
[393856120,1763044217649,-116.44233124,0.00016999,2]
[393856121,1763044217672,-115.4091796,0.00016999,2]
[393856122,1763044219416,-268.89354039,0.00016999,2]
[393856123,1763044221876,-115.69728001,0.00016999,2]
[393856124,1763044221900,-181.06273026,0.00016999,2]
[393856125,1763044226131,-318.93726974,0.00016999,2]
[393856126,1763044226155,-181.06273026,0.00016999,2]
[393856127,1763044231316,-287.52133112,0.00016999,2]
[393856135,1763044232337,541.09574014,0.00016999,2]
[393856136,1763044232421,-171.61133417,0.00016999,2]
[393856137,1763044232431,-6519.58866581,0.00017,2]
[393856138,1763044232484,-9843.46408272,0.00017,2]
[393856139,1763044232496,-420.61810182,0.00017,2]
[393856140,1763044232509,-111992.16534719,0.00017,2]
[393856141,1763044232603,-261.69993818,0.00017,2]
[393856149,1763044238228,-20283.42630069,0.00017,2]
[393856150,1763044239076,-514.09301284,0.00017,2]
[393856151,1763044239088,-1676.76878117,0.00017,2]
[393856152,1763044239101,-2230.543,0.00017,2]
[393856153,1763044239155,-9106.0809479,0.00017,2]
[393856154,1763044239170,-1972.29999997,0.00017,2]
[393856155,1763044239183,-340904.43358013,0.00017,2]
[393856156,1763044239194,-21387.9011435,0.00017,2]
[393856157,1763044239205,-160.69480635,0.000171,2]
[393856158,1763044239215,-160.69480635,0.000173,2]
[393856159,1763044239226,-250.0,0.0001745,2]
[393856160,1763044239237,-160.69480635,0.000175,2]
[393856161,1763044239247,-160.69480635,0.000177,2]
[393856162,1763044239258,-250.0,0.00017779,2]
[393856163,1763044239268,-500.0,0.00017899,2]
[393856164,1763044239278,-213.08761061,0.00017899,2]
[393856165,1763044239288,-500.0,0.00017899,2]
[393856166,1763044239298,-500.0,0.00017899,2]
[393856167,1763044239308,-500.0,0.00017899,2]
[393856168,1763044239318,-509.60873921,0.00017899,2]
[393856169,1763044239328,-182.24393284,0.00017899,2]
[393856170,1763044239338,-185.06485978,0.000179,2]
[393856171,1763044239348,-220.85198777,0.000179,2]
[393856172,1763044239358,-160.69480635,0.000179,2]
[393856173,1763044239369,-308.23777797,0.000179,2]
[393856174,1763044239379,-928.47659471,0.000179,2]
[393856175,1763044239389,-500.0,0.00017973,2]
[393856176,1763044239399,-500.0,0.00017973,2]
[393856177,1763044239411,-500.0,0.00017973,2]
[393856178,1763044239421,-500.0,0.00017973,2]
[393856179,1763044239430,-500.0,0.00017973,2]
[393856180,1763044239441,-500.0,0.00017973,2]
[393856181,1763044239451,-500.0,0.00017973,2]
[393856182,1763044239462,-626.36620621,0.00017973,2]
[393856183,1763044239477,-500.0,0.00017973,2]
[393856184,1763044239488,-500.0,0.00017973,2]
[393856185,1763044239498,-500.0,0.00017973,2]
[393856186,1763044239508,-1304.31618545,0.0001799,2]
[393856187,1763044239519,-1304.31618545,0.0001799,2]
[393856188,1763044239529,-1304.31618545,0.0001799,2]
[393856189,1763044239539,-400.0,0.00017998,2]
[393856190,1763044239548,-396.82347293,0.00017999,2]
[393856191,1763044239558,-548.76177041,0.00017999,2]
[393856192,1763044239568,-500.0,0.00017999,2]
[393856193,1763044239578,-500.0,0.00017999,2]
[393856194,1763044239588,-500.0,0.00017999,2]
[393856195,1763044239598,-512.18868075,0.00017999,2]
[393856196,1763044239607,-500.0,0.00017999,2]
[393856197,1763044239616,-500.0,0.00017999,2]
[393856198,1763044239626,-521.53917099,0.00017999,2]
[393856199,1763044239636,-500.0,0.00017999,2]
[393856200,1763044239645,-639.1955158,0.00017999,2]
[393856201,1763044239657,-500.0,0.00017999,2]
[393856202,1763044239667,-328.30641951,0.00017999,2]
[393856203,1763044239677,-14231658.36664942,0.00018,2]
[393856204,1763044239687,-884.64230449,0.00018,2]
[393856205,1763044239697,-140292.20530082,0.00018,2]
[393856206,1763044239707,-170.27609,0.00018,2]
[393856207,1763044239717,-1764.13159148,0.000181,2]
[393856208,1763044239726,-316.0,0.00018104,2]
[393856209,1763044239737,-1000.0,0.00018521,2]
[393856210,1763044239747,-506.67445187,0.00018521,2]
[393856211,1763044239756,-1000.0,0.00018521,2]
[393856212,1763044239767,-1000.0,0.00018521,2]
[393856213,1763044239777,-503.61158454,0.00018521,2]
[393856214,1763044239786,-1000.0,0.00018521,2]
[393856215,1763044239795,-420.0,0.00018567,2]
[393856216,1763044239805,-195.0,0.00018699,2]
[393856217,1763044239817,-250.0,0.000187,2]
[393856218,1763044239827,-151.0,0.000188,2]
[393856219,1763044239837,-151.0,0.000188,2]
[393856220,1763044239847,-151.0,0.000188,2]
[393856221,1763044239859,-151.0,0.000188,2]
[393856222,1763044239869,-151.0,0.000188,2]